bitfinex-derivatives/quotes_SOLF0:USTF0_20220110
["timestamp","ask_amount","ask_price","bid_price","bid_amount"]
[1641781792862,4.03940085,140.48,140.41,2.80914849]
[1641781793063,4.03940085,140.48,140.42,27.66479]
[1641781793463,4.03940085,140.48,140.43,2.80914849]
[1641781793964,2.55606686,140.47,140.43,2.80914849]
[1641781794769,4.03940085,140.46,140.43,2.80914849]
[1641781795670,4.03940085,140.48,140.43,2.80914849]
[1641781796570,2.55659284,140.47,140.43,2.80914849]
[1641781796971,4.03940085,140.46,140.43,6.80914849]
[1641781797270,2.55659284,140.47,140.45,27.66479]
[1641781797473,15.05788559,140.49,140.45,34.30779]
[1641781797671,15.05788559,140.52,140.45,38.30779]
[1641781797872,4.03806097,140.48,140.46,2.80914849]
[1641781798373,4.03806097,140.51,140.46,2.80914849]
[1641781799674,4.03806097,140.52,140.46,2.80914849]
[1641781803589,9.73136564,140.52,140.46,2.80914849]
[1641781803984,4.03806097,140.51,140.45,2.80914849]
[1641781804786,5.69405628,140.5,140.45,2.80914849]
[1641781804989,9.69405628,140.5,140.45,2.80914849]
[1641781805186,27.66479,140.47,140.45,2.80914849]
[1641781805389,33.82179,140.47,140.41,2.80914849]
[1641781805788,4.03806097,140.46,140.41,2.80914849]
[1641781806690,4.03806097,140.47,140.41,2.80914849]
[1641781806889,4.03806097,140.47,140.41,9.51914849]
[1641781807390,4.03806097,140.47,140.42,2.80914849]
[1641781808394,4.03806097,140.47,140.42,12.22414849]
[1641781809091,4.03806097,140.49,140.43,2.80914849]
[1641781809492,4.03806097,140.46,140.43,2.80914849]
[1641781809891,13.73247463,140.49,140.43,2.80914849]
[1641781810100,8.188,140.46,140.43,2.80914849]
[1641781810295,8.188,140.46,140.41,2.80914849]
[1641781810695,4.03806097,140.45,140.41,2.80914849]
[1641781812197,13.42006097,140.45,140.41,2.80914849]
[1641781812596,4.03806097,140.44,140.41,2.80914849]
[1641781813497,4.03806097,140.45,140.41,2.80914849]
[1641781813896,4.03806097,140.46,140.41,2.80914849]
[1641781823315,4.03806097,140.46,140.4,2.80914849]
[1641781823515,4.03806097,140.46,140.4,30.47393849]
[1641781824120,4.03806097,140.46,140.41,2.80914849]
[1641781825718,9.73403574,140.46,140.41,2.80914849]
[1641781825918,4.0,140.44,140.41,2.80914849]
[1641781826118,13.10474711,140.44,140.37,75.18978559]
[1641781826322,4.0,140.43,140.37,75.18978559]
[1641781826519,4.0,140.42,140.38,2.8090102]
[1641781826720,4.0,140.41,140.38,2.8090102]
[1641781826920,13.044,140.41,140.38,2.8090102]
[1641781827322,4.04026169,140.4,140.38,2.8090102]
[1641781827721,27.66479,140.39,140.35,2.8090102]
[1641781828724,27.66479,140.4,140.33,2.8090102]
[1641781828923,5.69752459,140.42,140.33,2.8090102]
[1641781828924,5.69752459,140.42,140.33,4.5890102]
[1641781829422,5.69752459,140.42,140.33,29.59558204]
[1641781829622,4.0401223,140.41,140.34,2.8090102]
[1641781829823,4.0401223,140.41,140.34,30.4738002]
[1641781830027,4.0401223,140.41,140.34,45.53168579]
[1641781830324,4.0401223,140.41,140.35,2.8090102]
[1641781831927,4.0,140.4,140.35,2.8090102]
[1641781832127,13.28424701,140.4,140.35,2.8090102]
[1641781832329,4.0,140.39,140.35,2.8090102]
[1641781832529,9.69865133,140.39,140.35,2.8090102]
[1641781832730,5.69865133,140.39,140.35,2.8090102]
[1641781832930,9.73877363,140.39,140.35,2.8090102]
[1641781833329,4.0401223,140.38,140.34,2.8090102]
[1641781833732,65.44146816,140.43,140.36,27.66479]
[1641781833931,65.44146816,140.43,140.36,33.99479]
[1641781834132,4.04011035,140.42,140.37,2.8090102]
[1641781834732,4.04011035,140.42,140.38,2.8090102]
[1641781835534,4.04011035,140.43,140.39,2.8090102]
[1641781835736,4.04011035,140.43,140.41,27.66479]
[1641781836135,4.04011035,140.43,140.42,2.8090102]
[1641781836539,4.04011035,140.45,140.42,2.8090102]
[1641781836937,4.04011035,140.45,140.43,2.8090102]
[1641781837339,4.04011035,140.46,140.37,70.63678559]
[1641781837538,6.53,140.45,140.37,70.63678559]
[1641781837737,6.53,140.45,140.39,27.66479]
[1641781838137,12.22604757,140.45,140.39,27.66479]
[1641781838339,4.04011035,140.44,140.4,2.21852619]
[1641781838537,4.04011035,140.44,140.4,4.69391725]
[1641781839142,4.04011035,140.44,140.41,2.21852619]
[1641781839339,4.04011035,140.44,140.41,8.96052619]
[1641781839738,7.12098554,140.47,140.41,6.742]
[1641781839739,27.66479,140.43,140.41,6.742]
[1641781840140,4.04011035,140.42,140.41,6.742]
[1641781840739,4.04011035,140.42,140.41,2.21927446]
[1641781841339,4.04011035,140.42,140.38,2.21927446]
[1641781841540,9.98111035,140.42,140.38,2.21927446]
[1641781841742,5.941,140.42,140.37,2.21927446]
[1641781842140,5.941,140.42,140.39,2.47591779]
[1641781842742,5.941,140.42,140.4,2.21927446]
[1641781842941,27.66479,140.45,140.4,2.21927446]
[1641781843141,31.66479,140.45,140.4,2.21927446]
[1641781843543,8.0395845,140.44,140.39,2.21927446]
[1641781843941,4.0395845,140.43,140.39,29.88406446]
[1641781844540,4.0395845,140.44,140.4,2.21927446]
[1641781844740,4.0395845,140.44,140.4,11.45027446]
[1641781845442,4.0395845,140.44,140.41,2.21927446]
[1641781847646,4.0395845,140.48,140.41,2.21927446]
[1641781847845,4.0395845,140.48,140.43,27.66479]
[1641781848044,4.0395845,140.48,140.43,35.68979]
[1641781848447,4.0395845,140.49,140.44,2.21927446]
[1641781848648,8.0395845,140.49,140.44,2.21927446]
[1641781849046,4.0395845,140.49,140.44,2.21927446]
[1641781849749,4.0395845,140.49,140.44,11.57727446]
[1641781850248,4.0395845,140.49,140.45,2.21927446]
[1641781851150,4.0395845,140.49,140.44,2.21927446]
[1641781855054,8.0395845,140.49,140.44,2.21927446]
[1641781855256,4.0395845,140.49,140.44,2.21927446]
[1641781855855,8.0395845,140.49,140.44,2.21927446]
[1641781856055,31.7043745,140.49,140.44,2.21927446]
[1641781856256,4.0,140.47,140.44,2.21927446]
[1641781856455,11.407,140.47,140.4,59.18687446]
[1641781856655,4.0,140.45,140.4,2.21927446]
[1641781856855,4.0,140.44,140.41,2.21927446]
[1641781857054,4.0,140.43,140.41,2.21927446]
[1641781857255,8.0395845,140.43,140.39,2.21927446]
[1641781857654,4.0395845,140.42,140.39,2.21927446]
[1641781858055,4.0395845,140.42,140.37,2.21927446]
[1641781858554,8.0395845,140.43,140.37,2.21927446]
[1641781858755,4.0395845,140.43,140.38,2.47488834]
[1641781858957,4.0395845,140.42,140.38,2.47488834]
[1641781859454,4.0395845,140.43,140.39,2.21927446]
[1641781860859,4.0395845,140.43,140.37,2.21927446]
[1641781861656,4.0395845,140.43,140.38,2.47539631]
[1641781862055,4.0395845,140.43,140.39,2.21927446]
[1641781862456,8.0395845,140.43,140.39,2.21927446]
[1641781862956,4.0395845,140.42,140.37,2.21927446]
[1641781863957,4.0395845,140.42,140.38,2.47687051]
[1641781864358,4.0395845,140.42,140.39,2.21927446]
[1641781864957,8.0395845,140.43,140.39,2.21927446]
[1641781865158,13.73645115,140.43,140.39,2.21927446]
[1641781865359,4.0395845,140.42,140.39,2.21927446]
[1641781865657,8.0395845,140.42,140.39,2.21927446]
[1641781865856,17.4505845,140.42,140.39,2.21927446]
[1641781866256,4.0,140.4,140.39,2.21927446]
[1641781866657,5.69861853,140.39,140.35,15.05788559]
[1641781866856,5.69861853,140.39,140.34,15.05788559]
[1641781866857,4.0,140.38,140.34,15.05788559]
[1641781867657,4.0,140.38,140.35,2.2198443]
[1641781868057,31.66479,140.38,140.35,2.2198443]
[1641781868557,27.66479,140.38,140.33,2.2198443]
[1641781868759,4.0,140.41,140.33,2.2198443]
[1641781868958,10.8369227,140.42,140.33,9.7138443]
[1641781869458,8.04013095,140.41,140.34,2.2198443]
[1641781869658,8.04013095,140.41,140.34,19.75282055]
[1641781869858,6.8369227,140.42,140.34,19.75282055]
[1641781869859,4.04013095,140.4,140.34,19.75282055]
[1641781870059,4.04013095,140.4,140.34,47.41761055]
[1641781870461,4.04013095,140.41,140.35,4.69493496]
[1641781870660,8.04013095,140.41,140.35,4.69493496]
[1641781870860,8.04013095,140.41,140.36,2.2198443]
[1641781871262,4.04013095,140.4,140.36,2.2198443]
[1641781871464,4.04013095,140.4,140.36,4.69493496]
[1641781872062,31.70492095,140.41,140.37,2.2198443]
[1641781872463,4.04013095,140.4,140.37,2.2198443]
[1641781873063,4.04013095,140.4,140.35,2.2198443]
[1641781873464,4.04013095,140.4,140.36,2.2198443]
[1641781873665,4.04013095,140.4,140.36,9.4638443]
[1641781873864,4.04013095,140.4,140.36,11.93825446]
[1641781874065,4.04013095,140.41,140.37,2.2198443]
[1641781874467,4.04013095,140.41,140.38,2.2198443]
[1641781874866,4.04013095,140.41,140.39,2.2198443]
[1641781875066,4.04013095,140.41,140.39,9.7348443]
[1641781875265,4.04013095,140.41,140.4,2.2198443]
[1641781875667,4.04013095,140.43,140.4,2.2198443]
[1641781876066,4.04013095,140.43,140.41,2.2198443]
[1641781876466,4.04013095,140.43,140.42,2.2198443]
[1641781877071,4.04013095,140.43,140.42,11.1498443]
[1641781877369,4.04013095,140.44,140.42,11.1498443]
[1641781877969,4.04013095,140.44,140.43,2.2198443]
[1641781878169,2.7600547,140.44,140.43,2.2198443]
[1641781878369,2.7600547,140.46,140.43,29.8846343]
[1641781878774,5.69461553,140.49,140.43,27.66479]
[1641781879574,4.03858536,140.48,140.44,2.02059752]
[1641781880874,8.03858536,140.5,140.44,2.02059752]
[1641781881075,4.03858536,140.5,140.44,2.02059752]
[1641781881274,8.03858536,140.5,140.44,2.02059752]
[1641781881474,4.03858536,140.5,140.44,2.02059752]
[1641781882079,4.03858536,140.5,140.44,3.79859752]
[1641781882474,4.03858536,140.5,140.47,27.66479]
[1641781882675,4.03858536,140.52,140.47,34.69479]
[1641781883175,4.03858536,140.52,140.48,2.02059752]
[1641781883575,4.03858536,140.53,140.48,2.02059752]
[1641781884374,8.03858536,140.53,140.48,2.02059752]
[1641781884776,4.03858536,140.52,140.48,2.02059752]
[1641781885275,4.03858536,140.52,140.44,2.02059752]
[1641781885776,4.03858536,140.52,140.44,6.02059752]
[1641781885975,4.03858536,140.53,140.44,6.02059752]
[1641781886175,4.03858536,140.53,140.45,1.778]
[1641781886375,4.03858536,140.53,140.47,27.66479]
[1641781886876,4.03858536,140.53,140.48,2.02059752]
[1641781887675,4.03858536,140.53,140.48,8.72759752]
[1641781888076,4.03858536,140.53,140.49,2.02059752]
[1641781890079,4.03858536,140.53,140.48,2.02059752]
[1641781890281,8.03858536,140.53,140.48,2.02059752]
[1641781890479,4.03858536,140.53,140.48,2.02059752]
[1641781890878,4.03858536,140.53,140.46,2.02059752]
[1641781891879,4.0,140.52,140.46,2.02059752]
[1641781892078,4.0,140.5,140.46,2.02059752]
[1641781892278,17.61831138,140.5,140.46,2.02059752]
[1641781892479,27.66479,140.49,140.46,2.02059752]
[1641781892680,31.70337536,140.49,140.44,2.02059752]
[1641781893078,4.03858536,140.48,140.42,2.02059752]
[1641781893479,4.03858536,140.48,140.42,6.02059752]
[1641781893678,4.03858536,140.48,140.43,1.778]
[1641781893877,4.03858536,140.48,140.43,9.365]
[1641781894079,4.03858536,140.51,140.44,2.02059752]
[1641781894680,8.03858536,140.51,140.44,2.02059752]
[1641781895281,4.03858536,140.5,140.44,2.02059752]
[1641781895481,8.03858536,140.5,140.44,2.02059752]
[1641781895780,4.0,140.48,140.44,2.02059752]
[1641781895981,9.894,140.48,140.44,2.02059752]
[1641781896381,4.03858536,140.47,140.42,2.02059752]
[1641781898582,5.984,140.47,140.42,2.02059752]
[1641781898982,4.03858536,140.46,140.42,2.02059752]
[1641781900286,8.03858536,140.46,140.42,2.02059752]
[1641781900485,31.66479,140.45,140.42,2.02059752]
[1641781900784,31.66479,140.45,140.37,44.50067559]
[1641781900785,35.70337536,140.45,140.4,2.02059752]
[1641781901186,4.03858536,140.44,140.39,2.02059752]
[1641781902489,4.03858536,140.44,140.4,27.66479]
[1641781902689,4.03858536,140.44,140.4,34.37479]
[1641781902890,4.03858536,140.47,140.41,2.02059752]
[1641781903089,4.03858536,140.47,140.41,4.49044096]
[1641781903691,4.03858536,140.47,140.42,2.02059752]
[1641781904697,8.03858536,140.47,140.42,2.02059752]
[1641781904993,8.03858536,140.47,140.41,2.02059752]
[1641781905193,4.0,140.46,140.41,2.02059752]
[1641781905595,4.03858536,140.45,140.39,2.02059752]
[1641781906598,4.03858536,140.46,140.39,29.68538752]
[1641781906797,4.03858536,140.46,140.4,2.47253795]
[1641781906998,4.03858536,140.46,140.4,4.49313547]
[1641781907600,4.03858536,140.46,140.41,2.02059752]
[1641781908199,4.03858536,140.46,140.41,12.62359752]
[1641781908404,4.03858536,140.46,140.42,2.47269804]
[1641781908801,4.03858536,140.48,140.43,2.02059752]
[1641781909701,4.03858536,140.48,140.42,2.02059752]
[1641781910303,4.03858536,140.48,140.42,6.02059752]
[1641781910506,4.03858536,140.48,140.44,27.66479]
[1641781910706,4.03858536,140.48,140.44,34.48779]
[1641781911105,4.03858536,140.5,140.45,2.02059752]
[1641781911504,4.03858536,140.51,140.45,2.02059752]
[1641781912004,4.03858536,140.51,140.44,2.02059752]
[1641781912205,4.03858536,140.51,140.44,6.02059752]
[1641781912405,4.03858536,140.51,140.44,2.02059752]
[1641781912604,4.03858536,140.51,140.45,27.66479]
[1641781913305,4.03858536,140.51,140.46,2.02059752]
[1641781915308,4.0,140.5,140.46,2.02059752]
[1641781915511,12.144,140.5,140.46,2.02059752]
[1641781915709,8.144,140.5,140.46,2.02059752]
[1641781915911,12.144,140.5,140.46,2.02059752]
[1641781916110,4.03858536,140.49,140.42,2.02059752]
[1641781916610,4.03858536,140.49,140.44,27.66479]
[1641781917111,4.03858536,140.51,140.45,2.02059752]
[1641781919114,8.03858536,140.51,140.45,2.02059752]
[1641781919613,4.03858536,140.5,140.45,2.02059752]
[1641781919813,11.92358536,140.5,140.45,2.02059752]
[1641781920013,15.92358536,140.5,140.42,2.02059752]
[1641781920213,21.6177743,140.5,140.42,2.02059752]
[1641781920515,49.2825643,140.5,140.42,2.02059752]
[1641781920915,49.2825643,140.5,140.43,2.47527564]
[1641781921115,4.03858536,140.49,140.43,2.47527564]
[1641781921715,4.03858536,140.49,140.44,2.02059752]
[1641781922616,4.03858536,140.49,140.44,29.68538752]
[1641781923019,4.03858536,140.49,140.45,4.49601264]
[1641781923417,4.03858536,140.49,140.46,2.02059752]
[1641781924318,4.03858536,140.49,140.44,2.02059752]
[1641781924519,10.80658536,140.49,140.44,2.02059752]
[1641781924920,4.03858536,140.48,140.44,2.02059752]
[1641781926021,4.03858536,140.48,140.45,2.4752064]
[1641781926622,4.03858536,140.49,140.46,2.02059752]
[1641781928025,4.03858536,140.51,140.46,2.02059752]
[1641781928726,31.70337536,140.51,140.46,2.02059752]
[1641781928927,4.03858536,140.51,140.46,2.02059752]
[1641781929529,4.03858536,140.51,140.46,7.79859752]
[1641781929729,4.03858536,140.53,140.46,7.79859752]
[1641781929930,4.03858536,140.53,140.46,2.02059752]
[1641781930129,4.03858536,140.53,140.47,2.02059752]
[1641781930530,4.03858536,140.53,140.46,2.02059752]
[1641781935033,9.88258536,140.53,140.46,2.02059752]
[1641781935434,4.03858536,140.52,140.45,2.02059752]
[1641781935834,4.03858536,140.52,140.44,2.02059752]
[1641781936336,4.03858536,140.52,140.46,2.47522996]
[1641781936735,4.03858536,140.52,140.47,2.02059752]
[1641781937637,4.03858536,140.52,140.46,2.02059752]
[1641781937837,4.03858536,140.52,140.46,3.79859752]
[1641781938038,4.03858536,140.52,140.46,2.02059752]
[1641781938440,4.03858536,140.53,140.46,2.02059752]
[1641781938641,6.581,140.52,140.47,2.47730385]
[1641781939239,16.27430179,140.52,140.48,2.02059752]
[1641781939440,6.59554804,140.51,140.48,2.02059752]
[1641781939840,4.03858536,140.5,140.44,2.02059752]
[1641781940742,4.03858536,140.51,140.45,27.66479]
[1641781940943,4.03858536,140.51,140.47,4.0]
[1641781941146,4.03858536,140.52,140.47,4.0]
[1641781941843,4.03858536,140.52,140.48,2.02059752]
[1641781942748,4.03858536,140.53,140.48,2.02059752]
[1641781943549,2.55776744,140.52,140.48,2.02059752]
[1641781943750,8.25122606,140.52,140.48,2.02059752]
[1641781943949,15.45722606,140.52,140.48,2.02059752]
[1641781944249,4.03858536,140.51,140.46,2.02059752]
[1641781944650,4.03858536,140.51,140.49,2.02059752]
[1641781945051,6.5963528,140.51,140.46,2.02059752]
[1641781945452,4.03858536,140.5,140.45,2.02059752]
[1641781945851,4.03858536,140.5,140.46,2.47872493]
[1641781946253,4.03858536,140.5,140.47,2.02059752]
[1641781947654,4.03858536,140.5,140.45,2.02059752]
[1641781948957,4.03858536,140.5,140.46,2.47994993]
[1641781949357,9.73255481,140.5,140.46,2.47994993]
[1641781949554,9.73255481,140.5,140.47,2.02059752]
[1641781949955,4.03858536,140.49,140.47,2.02059752]
[1641781950155,11.00958536,140.49,140.47,2.02059752]
[1641781950757,4.03858536,140.48,140.45,2.02059752]
[1641781951759,4.03858536,140.49,140.46,2.48030027]
[1641781952158,4.03858536,140.49,140.47,2.02059752]
[1641781953360,4.03858536,140.49,140.45,2.02059752]
[1641781953561,10.76758536,140.49,140.45,2.02059752]
[1641781953864,4.03858536,140.48,140.45,2.02059752]
[1641781954962,4.03858536,140.49,140.46,2.48059101]
[1641781955363,4.03858536,140.49,140.47,2.02059752]
[1641781956667,4.03858536,140.49,140.44,2.02059752]
[1641781957567,4.03858536,140.49,140.45,2.48059673]
[1641781957766,4.03858536,140.49,140.45,11.16459673]
[1641781957966,4.03858536,140.5,140.47,27.66479]
[1641781958366,4.03858536,140.51,140.48,2.02059752]
[1641781958567,4.03858536,140.51,140.48,9.30459752]
[1641781958966,4.03858536,140.51,140.49,2.02059752]
[1641781959169,4.03858536,140.51,140.49,4.50119425]
[1641781959767,4.03858536,140.51,140.5,2.02059752]
[1641781960671,4.03858536,140.51,140.48,2.02059752]
[1641781961874,4.03858536,140.51,140.49,2.48039097]
[1641781962073,4.03858536,140.52,140.49,2.48039097]
[1641781962476,4.03858536,140.52,140.5,2.02059752]
[1641781963674,4.03858536,140.52,140.49,2.02059752]
[1641781964474,4.03858536,140.52,140.48,2.02059752]
[1641781964675,9.73174291,140.52,140.48,2.02059752]
[1641781964875,5.69396775,140.5,140.48,2.02059752]
[1641781965274,4.03858536,140.49,140.47,2.02059752]
[1641781965474,6.59776582,140.49,140.47,2.02059752]
[1641781966178,4.03858536,140.48,140.46,2.02059752]
[1641781967077,4.03858536,140.49,140.47,2.47979428]
[1641781967480,4.03858536,140.49,140.48,2.02059752]
[1641781969081,4.03858536,140.49,140.45,2.02059752]
[1641781969881,4.03858536,140.5,140.45,2.02059752]
[1641781970281,4.03858536,140.5,140.46,2.47973879]
[1641781970783,4.03858536,140.5,140.47,2.02059752]
[1641781971985,4.03858536,140.5,140.45,2.02059752]
[1641781972384,4.03858536,140.52,140.45,2.02059752]
[1641781972585,4.03858536,140.52,140.46,2.48001119]
[1641781972784,27.66479,140.51,140.46,2.48001119]
[1641781973185,30.22401434,140.51,140.47,2.02059752]
[1641781973388,4.03858536,140.5,140.47,10.81959752]
[1641781973787,4.03858536,140.5,140.48,2.02059752]
[1641781974488,4.03858536,140.52,140.48,2.02059752]
[1641781975689,4.03858536,140.52,140.49,2.47950594]
[1641781976189,4.03858536,140.52,140.5,2.02059752]
[1641781976390,4.03858536,140.52,140.5,9.06059752]
[1641781977192,4.03858536,140.53,140.51,2.02059752]
[1641781977991,2.55827834,140.52,140.48,2.02059752]
[1641781978390,4.03858536,140.51,140.48,2.02059752]
[1641781979392,15.05788559,140.54,140.5,4.0]
[1641781979594,15.05788559,140.55,140.51,4.0]
[1641781979891,15.05788559,140.55,140.5,6.457]
[1641781980095,15.05788559,140.55,140.52,4.0]
[1641781980693,27.66479,140.56,140.52,4.0]
[1641781980892,27.66479,140.56,140.53,2.05780246]
[1641781981093,27.66479,140.56,140.53,10.32980246]
[1641781981692,27.66479,140.56,140.54,2.05780246]
[1641781981895,4.03539529,140.55,140.54,2.05780246]
[1641781982496,10.81839529,140.55,140.54,2.05780246]
[1641781982995,10.81839529,140.55,140.52,2.05780246]
[1641781983396,4.03539529,140.54,140.51,2.05780246]
[1641781983797,4.03539529,140.54,140.49,85.67839]
[1641781983798,4.03539529,140.54,140.5,2.05780246]
[1641781984297,9.529e-05,140.55,140.5,2.05780246]
[1641781984496,9.529e-05,140.55,140.51,1.778]
[1641781985297,9.529e-05,140.55,140.51,5.778]
[1641781985499,9.529e-05,140.55,140.52,4.0]
[1641781985695,9.529e-05,140.55,140.52,6.86566734]
[1641781986096,27.66479,140.56,140.53,2.86566734]
[1641781986297,27.66479,140.56,140.53,11.86766734]
[1641781986797,27.66479,140.56,140.54,2.86566734]
[1641781988299,4.0356423,140.55,140.54,2.86566734]
[1641781988701,4.0356423,140.55,140.51,2.86566734]
[1641781989101,4.0356423,140.55,140.51,6.86566734]
[1641781989401,4.0356423,140.55,140.51,2.86566734]
[1641781989601,4.0356423,140.55,140.52,2.86566734]
[1641781990104,4.0356423,140.55,140.51,2.86566734]
[1641781990800,4.0356423,140.55,140.51,6.86566734]
[1641781991304,4.0356423,140.55,140.52,2.86566734]
[1641781991700,4.0356423,140.55,140.51,2.86566734]
[1641781992500,4.0356423,140.55,140.51,6.86566734]
[1641781992902,27.66479,140.56,140.52,2.86566734]
[1641781993302,27.66479,140.56,140.52,6.86566734]
[1641781993902,27.66479,140.56,140.53,2.86566734]
[1641781994104,27.66479,140.56,140.53,4.64366734]
[1641781994705,27.66479,140.56,140.54,2.86566734]
[1641781995508,27.66479,140.56,140.52,2.86566734]
[1641781996508,4.03618362,140.55,140.52,2.86566734]
[1641781996707,10.01018362,140.55,140.52,2.86566734]
[1641781996907,10.01018362,140.55,140.5,2.86566734]
[1641781997308,4.03618362,140.54,140.5,2.86566734]
[1641781998108,4.03618362,140.55,140.5,6.86566734]
[1641781998308,4.03618362,140.55,140.5,11.45966734]
[1641781998709,4.03618362,140.55,140.51,2.86566734]
[1641781999812,4.03618362,140.55,140.52,1.778]
[1641782000211,27.66479,140.56,140.53,2.86566734]
[1641782000613,4.0354894,140.55,140.53,2.86566734]
[1641782001013,27.66479,140.56,140.52,2.86566734]
[1641782001916,50.8176,140.6,140.52,2.86566734]
[1641782002315,4.03540219,140.59,140.52,2.86566734]
[1641782002516,27.66479,140.57,140.52,2.86566734]
[1641782003321,4.03540219,140.56,140.52,2.86566734]
[1641782003518,4.03540219,140.56,140.53,4.0]
[1641782003818,4.03540219,140.56,140.52,2.86566734]
[1641782004018,4.03540219,140.56,140.53,1.778]
[1641782004218,4.03540219,140.56,140.54,2.86566734]
[1641782004719,4.03540219,140.58,140.53,30.53045734]
[1641782004918,27.66479,140.59,140.55,2.86566734]
[1641782005320,27.66479,140.59,140.54,2.86566734]
[1641782005525,4.03524983,140.58,140.54,2.86566734]
[1641782009227,4.03524983,140.58,140.54,6.86566734]
[1641782009427,4.03524983,140.59,140.54,2.86566734]
[1641782009628,4.03524983,140.59,140.54,4.64366734]
[1641782010230,4.03524983,140.59,140.55,2.86566734]
[1641782011030,4.03524983,140.59,140.55,9.47366734]
[1641782011237,4.03524983,140.59,140.55,6.608]
[1641782011530,4.03524983,140.59,140.56,2.86566734]
[1641782012936,4.03524983,140.59,140.54,11.46566734]
[1641782013333,4.03524983,140.59,140.57,2.86566734]
[1641782013536,4.03524983,140.59,140.57,11.89466734]
[1641782013734,4.03524983,140.59,140.57,9.029]
[1641782015236,4.03524983,140.59,140.58,4.02104804]
[1641782016237,4.03524983,140.61,140.58,4.02104804]
[1641782018743,4.03524983,140.61,140.55,4.02104804]
[1641782018941,27.66479,140.58,140.55,4.02104804]
[1641782019142,37.69879,140.58,140.55,4.804e-05]
[1641782019343,4.03524983,140.57,140.54,4.804e-05]
[1641782020547,4.03524983,140.57,140.52,2.47670704]
[1641782021749,4.03524983,140.58,140.52,2.47670704]
[1641782021948,4.03524983,140.58,140.52,11.91270704]
[1641782022148,4.03524983,140.58,140.52,67.12850704]
[1641782022348,4.03524983,140.58,140.53,4.0]
[1641782022548,4.03524983,140.58,140.54,1.778]
[1641782022748,4.03524983,140.6,140.54,1.778]
[1641782022948,4.03524983,140.6,140.57,27.66479]
[1641782023750,4.03524983,140.61,140.58,4.804e-05]
[1641782024553,4.03524983,140.61,140.58,5.93804804]
[1641782024852,4.03524983,140.61,140.58,9.93804804]
[1641782025051,4.03524983,140.61,140.6,31.66479]
[1641782025252,15.05788559,140.65,140.6,27.66479]
[1641782025653,4.03349357,140.64,140.61,4.804e-05]
[1641782025855,4.03349357,140.64,140.61,8.28804804]
[1641782026656,4.03349357,140.66,140.62,4.804e-05]
[1641782027555,4.03349357,140.66,140.62,8.693]
[1641782027958,4.03349357,140.66,140.63,4.804e-05]
[1641782028962,4.03349357,140.66,140.65,27.66479]
[1641782029760,58.88399357,140.7,140.65,27.66483804]
[1641782029960,4.03349357,140.7,140.65,4.804e-05]
[1641782030160,8.03349357,140.69,140.6,27.66479]
[1641782030361,4.0,140.68,140.6,27.66479]
[1641782030562,8.03349357,140.68,140.61,2.86627869]
[1641782030960,4.03349357,140.67,140.61,2.86627869]
[1641782031362,13.37249357,140.67,140.61,2.86627869]
[1641782031567,17.37249357,140.67,140.61,2.86627869]
[1641782031763,4.0,140.66,140.61,2.86627869]
[1641782031962,4.03349357,140.66,140.61,2.86627869]
[1641782032962,4.03349357,140.67,140.61,2.86627869]
[1641782034564,4.03349357,140.68,140.61,2.86627869]
[1641782035766,2.54594596,140.67,140.61,4.64227869]
[1641782036167,4.03349357,140.66,140.62,2.86627869]
[1641782037170,4.03349357,140.68,140.62,2.86627869]
[1641782038068,4.03349357,140.68,140.61,2.86627869]
[1641782041981,4.03349357,140.68,140.6,2.86627869]
[1641782042581,10.47749357,140.68,140.6,2.86627869]
[1641782043083,4.03349357,140.67,140.61,27.66479]
[1641782043282,4.03349357,140.67,140.61,33.90279]
[1641782043781,4.03349357,140.69,140.62,2.86627869]
[1641782044484,8.03349357,140.69,140.62,2.86627869]
[1641782044683,4.0,140.65,140.62,2.86627869]
[1641782044883,15.71419574,140.65,140.57,15.05788559]
[1641782045083,31.66479,140.63,140.6,2.86716996]
[1641782045284,33.35372695,140.63,140.6,2.86716996]
[1641782045484,33.35372695,140.63,140.56,2.46953283]
[1641782046283,4.03471776,140.62,140.57,2.26588569]
[1641782047185,4.03471776,140.62,140.56,2.26588569]
[1641782048087,4.03471776,140.63,140.57,4.0]
[1641782048288,4.03471776,140.63,140.58,1.778]
[1641782048590,4.03471776,140.63,140.58,4.04388569]
[1641782048989,4.03471776,140.63,140.59,2.46989228]
[1641782049191,15.05788559,140.69,140.6,27.66479]
[1641782049391,15.05788559,140.69,140.61,1.776]
[1641782049693,4.03276115,140.68,140.61,4.04188569]
[1641782049891,4.03276115,140.68,140.61,8.04188569]
[1641782050091,4.03276115,140.68,140.62,2.26588569]
[1641782050293,4.03276115,140.68,140.63,1.776]
[1641782050493,4.03276115,140.68,140.63,9.733]
[1641782050895,4.03276115,140.69,140.64,2.26588569]
[1641782053095,4.03276115,140.69,140.66,27.66479]
[1641782053296,4.03276115,140.69,140.66,34.51679]
[1641782053499,4.03276115,140.7,140.67,2.26588569]
[1641782053900,4.03276115,140.7,140.67,4.7375049]